Cogmind - Beta 16.1 @@@ ROGUE MODE // 2026.03.28 @ 10:41:13 Player: Gatamar Result: Destroyed self with Grenade Launcher Performance ------------- Evolutions (0) 0 Regions Visited (3) 600 Robots Destroyed (19) 95 Value Destroyed (597) 597 Prototype IDs (0) 0 Alien Tech Used (0) 0 Bonus (0) 0 TOTAL SCORE: 1292 Bonus ------- None Cogmind --------- Core Integrity 0/250 Matter 201/300 Energy 65/100 System Corruption 0% Temperature Cool (0) Movement Core (750) Ox14 Location -10/Subcaves Parts ------- > --- POWER (1) -------- (None) > --- PROPULSION (2) --- (None) > --- UTILITY (2) ------ High-capacity Storage Unit > --- WEAPON (2) ------- Grenade Launcher Datajack > --- INVENTORY (20) --- Ion Engine Ion Engine Light Treads Light Treads Light Treads Aluminum Leg Aluminum Leg Peak State ------------ > --- POWER ------------ Light Ion Engine > --- PROPULSION ------- Light Treads Light Treads > --- UTILITY ---------- High-capacity Storage Unit Seismic Detector > --- WEAPON ----------- Light Assault Rifle Rocket Launcher > --- INVENTORY -------- Ion Engine Ion Engine Light Treads Light Treads Light Treads Light Treads Light Treads Aluminum Leg Aluminum Leg Light Assault Rifle Grenade Launcher Grenade Launcher Grenade Launcher Datajack Enhanced Flamer [Rating: 9] Favorites ----------- Power Light Ion Engine Engine Light Ion Engine Propulsion Light Treads Treads Light Treads Utility Seismic Detector Device Seismic Detector Storage High-capacity Storage Unit Weapon Light Assault Rifle Ballistic Gun Light Assault Rifle Launcher Grenade Launcher Special Weapon Enhanced Flamer Special Melee Weapon Datajack Build | -11 -10 -10 -10 ------- Run | Yrd Mat Min Sub Slots Evolved . | . . . . Power . | . . . . Propulsion . | . . . . Utility . | . . . . Weapon . | . . . . Parts Attached 16 | 6 2 4 4 Power 1 | 1 . . . Engine 1 | 1 . . . Core . | . . . . Reactor . | . . . . Propulsion 4 | 2 . 2 . Treads 4 | 2 . 2 . Leg . | . . . . Wheel . | . . . . Hover . | . . . . Flight . | . . . . Utility 3 | 1 2 . . Device 1 | . 1 . . Storage 2 | 1 1 . . Processor . | . . . . Hackware . | . . . . Protection . | . . . . Artifact . | . . . . Weapon 8 | 2 . 2 4 Energy Gun . | . . . . Energy Cannon . | . . . . Ballistic Gun 2 | 2 . . . Ballistic Cannon . | . . . . Launcher 4 | . . 2 2 Special Weapon 1 | . . . 1 Impact Weapon . | . . . . Slashing Weapon . | . . . . Piercing Weapon . | . . . . Special Melee Weapon 1 | . . . 1 Unidentified Prototypes . | . . . . Parts Lost 12 | . . 6 6 Power 1 | . . 1 . Propulsion 4 | . . 2 2 Utility 1 | . . 1 . Weapon 6 | . . 2 4 Highest Loss Streak 6 | . . 6 6 To Critical Strikes . | . . . . Average Backups 10 | 3 7 13 9 Power 1 | . 1 2 2 Propulsion 4 | 1 2 6 5 Utility . | . . . . Weapon 3 | 1 2 4 2 Tool/Special . | . . . . Unused Backups 10 | . 3 . 7 Power 3 | . 1 . 2 Propulsion 5 | . . . 5 Utility 1 | . 1 . . Weapon 1 | . 1 . . Tool/Special . | . . . . Average Slot Usage (%) 90 | . 99 87 56 Engine 10 | . 14 8 . Treads 27 | . 28 27 18 Device 9 | . 13 8 . Storage 14 | . 14 14 14 Ballistic Gun 24 | . 28 22 11 Launcher 3 | . . 5 4 Peak Build Rating 9 | 6 8 9 6 Average Rating 6 | 4 7 7 5 On Entrance 5 | . 6 8 6 Avg Prop Armor Cover (%) . | . . . . Naked Turns . | . . . . Heaviest Build 46 | 10 46 46 44 Greatest Support 40 | 40 40 40 40 Greatest Overweight (x) 1 | . 1 1 1 Average Overweight (x) . | . . 1 1 Largest Inventory Capacity 20 | 8 20 20 20 Average Capacity 15 | 6 10 20 20 Most Carried 15 | 5 13 15 11 Average Carried 10 | 3 7 13 9 Final Capacity 20 | 8 20 20 20 Final Carried 13 | 4 13 11 7 Class Distribution -------------------- 100% | Mutant Dominant Class ---------------- Mutant | -10/Materials Mutant | -10/Mines Mutant | -10/Subcaves Resources | -11 -10 -10 -10 ----------- Run | Yrd Mat Min Sub Matter Collected 441 | 203 151 87 . Remotely . | . . . . Salvage Created 683 | . 456 154 73 Parts 37 | . 22 4 11 Haulers Intercepted 1 | . 1 . . Recyclers Shooed 2 | . 2 . . Parts Field Recycled . | . . . . Retrieved Matter . | . . . . Parts Self-Destructed . | . . . . Prevented . | . . . . Parts Restored . | . . . . Kills | -11 -10 -10 -10 ------- Run | Yrd Mat Min Sub Combat Hostiles Destroyed 14 | . 7 4 3 Guns 10 | . 7 3 . AOE 4 | . . 1 3 Classes Destroyed 6 | . 5 . 1 Worker 1 | . 1 . . Hauler 1 | . 1 . . Recycler 2 | . 1 1 . Watcher 1 | . 1 . . Grunt 11 | . 7 4 . Subdweller 3 | . . . 3 Best Kill Streak 5 | . 5 5 2 Combat Bots Only 4 | . 3 4 2 Max Kills in Single Turn 1 | . 1 1 1 Gunslinging . | . . . . Exploded 1 | . . 1 1 Melee . | . . . . Uniques/NPCs Destroyed . | . . . . Combat | -11 -10 -10 -10 -------- Run | Yrd Mat Min Sub Hostile Shots Fired 104 | . 40 40 24 Missed 23 | . 9 12 2 Hits 81 | . 31 28 22 Projectile 81 | . 31 28 22 AOE 2 | . . . 2 Critical Strikes 1 | . . 1 . Damage Taken 1430 | . 387 490 553 Core 253 | . 71 125 57 Absorbed by Shields . | . . . . Core Remaining (%) 100 | 100 . . . Volleys Fired 88 | . 55 17 16 Largest 2 | . 2 2 2 Hottest 80 | . 40 53 80 Shots Fired 156 | . 110 27 19 Gun 146 | . 110 23 13 Cannon . | . . . . Launcher 8 | . . 4 4 Special 2 | . . . 2 Kinetic 146 | . 110 23 13 Thermal 2 | . . . 2 Explosive 8 | . . 4 4 Electromagnetic . | . . . . Robot Hit Streak 17 | . 13 11 17 Robot Miss Streak 3 | . 2 3 1 Penetration Max . | . . . . Secondary Targets 2 | . 1 1 . Max Gunslinging Chain 1 | . 1 1 . Shots Hit Robots 114 | . 76 19 19 Core Hits 49 | . 28 13 8 Critical Kills . | . . . . Critical Parts Destroyed . | . . . . Critical Strikes . | . . . . Melee Attacks 3 | . . . 3 Impact . | . . . . Slashing . | . . . . Piercing . | . . . . Sneak Attacks . | . . . . Combat Hostiles . | . . . . Follow-up Attacks . | . . . . Damage Inflicted 1403 | . 633 404 366 Guns 861 | . 633 140 88 Cannons . | . . . . Explosions 531 | . . 263 268 Melee . | . . . . Ramming 1 | . . 1 . Kinetic 861 | . 633 140 88 Thermal 10 | . . . 10 Explosive 531 | . . 263 268 Electromagnetic . | . . . . Impact . | . . . . Slashing . | . . . . Piercing . | . . . . Highest Corruption . | . . . . Average Corruption . | . . . . Corruption Purged . | . . . . Corruption Blocked . | . . . . Overload Shots . | . . . . Overflow Damage 39 | . . . 39 Projectiles . | . . . . Explosions 39 | . . . 39 Melee . | . . . . Knockbacks . | . . . . Impact . | . . . . Kinetic . | . . . . Secondary . | . . . . Self-Inflicted Damage 110 | . . 70 40 Shots 3 | . . 2 1 Rammed 1 | . . 1 . Targets Rammed 1 | . . 1 . Kicked . | . . . . Crushed . | . . . . Highest Temperature 33 | . 18 33 . Average Temperature 11 | . 9 16 . Received Heat Transfer 489 | . 219 252 18 Siege Activations . | . . . . Martial Activations . | . . . . Shielding Activations . | . . . . Robots Disrupted . | . . . . Combat Hostiles . | . . . . Robots Corrupted . | . . . . Combat Hostiles . | . . . . Parts Fried . | . . . . Impact Corruptions . | . . . . Robots Melted . | . . . . Combat Hostiles . | . . . . Parts Melted . | . . . . Heat Transferred 80 | . . . 80 Parts Sabotaged . | . . . . Parts Stolen . | . . . . Parts Stripped . | . . . . Power Chain Reactions . | . . . . Alert | -11 -10 -10 -10 ------- Run | Yrd Mat Min Sub Maximum Alert Level . | . . . . Low Security (%) 100 | 100 100 100 . Level 1 . | . . . . Level 2 . | . . . . Level 3 . | . . . . Level 4 . | . . . . Level 5 . | . . . . High Security . | . . . . Max Security . | . . . . Peak Influence 92 | . 67 92 . Initial . | . . . . Average 13 | . 16 12 . Influence Increases 352 | . 194 158 . Destroy 0b10 Robot/C 220 | . 140 80 . Destroy 0b10 Robot/NC 25 | . 20 5 . Destroy Leader 54 | . 34 20 . Disable Machine 30 | . . 30 . Destroy Structure 23 | . . 23 . Influence Decreases 352 | . 194 158 . Time Decay 302 | . 194 108 . Lost Part 50 | . . 50 . Squads Dispatched 1 | . 1 . . Investigation 1 | . 1 . . Extermination . | . . . . Reinforcement . | . . . . Assault . | . . . . Garrison . | . . . . Intercept . | . . . . Searches Triggered . | . . . . Construction Impeded . | . . . . Haulers Reinforced . | . . . . Active Scanning Responses . | . . . . Cargo Convoy Interrupts . | . . . . Stealth | -11 -10 -10 -10 --------- Run | Yrd Mat Min Sub Distress Signals . | . . . . Communications Jammed . | . . . . Distress Signals . | . . . . Times Spotted 25 | . 9 13 3 Peak Tracking Total 13 | . 4 13 3 Tactical Retreats . | . . . . Traps | -11 -10 -10 -10 ------- Run | Yrd Mat Min Sub Traps Triggered 1 | . 1 . . Indirectly . | . . . . Trap Hack Attempts . | . . . . Triggered . | . . . . Disarmed . | . . . . Reprogrammed . | . . . . Reused . | . . . . Traps Extracted . | . . . . Installed . | . . . . Triggered . | . . . . Machines | -11 -10 -10 -10 ---------- Run | Yrd Mat Min Sub Machines Disabled 2 | . . 2 . Max in Single Turn 1 | . . 1 . Machines Repaired . | . . . . Machines Dismantled . | . . . . Machines Sabotaged . | . . . . Overloaded Fab Kills . | . . . . Hacking | -11 -10 -10 -10 --------- Run | Yrd Mat Min Sub Machines Accessed 1 | . 1 . . Terminals 1 | . 1 . . Fabricators . | . . . . Repair Stations . | . . . . Recycling Units . | . . . . Scanalyzers . | . . . . Garrison Access . | . . . . Total Hacks 4 | . 4 . . Successful 1 | . 1 . . Failed 3 | . 3 . . Catastrophic . | . . . . Database Lockouts . | . . . . Manual 2 | . 2 . . Terminals 4 | . 4 . . Fabricators . | . . . . Repair Stations . | . . . . Recycling Units . | . . . . Scanalyzers . | . . . . Garrison Access . | . . . . Terminal Hacks 1 | . 1 . . Locate Traps 1 | . 1 . . Fabricator Hacks . | . . . . Repair Station Hacks . | . . . . Recycling Unit Hacks . | . . . . Scanalyzer . | . . . . Garrison Access Hacks . | . . . . Unauthorized Hacks . | . . . . Terminals . | . . . . Fabricators . | . . . . Repair Stations . | . . . . Recycling Units . | . . . . Scanalyzers . | . . . . Garrison Access . | . . . . Data Cores Recovered . | . . . . Used . | . . . . Hacking Detections 1 | . 1 . . Full Trace Events 1 | . 1 . . Feedback Events . | . . . . Feedback Blocked . | . . . . Robot Schematics Acquired . | . . . . Robots Built . | . . . . Authchips . | . . . . Time . | . . . . Total Robot Build Rating . | . . . . Part Schematics Acquired . | . . . . Parts Built . | . . . . Authchips . | . . . . Time . | . . . . Total Part Build Rating . | . . . . Part Studies Acquired . | . . . . Parts Repaired . | . . . . Time . | . . . . Parts Recycled . | . . . . Recycled Matter . | . . . . Retrieved Matter . | . . . . Retrieved Components . | . . . . Parts Scanalyzed . | . . . . Part Schematics Acquired . | . . . . Parts Damaged . | . . . . Bothacking | -11 -10 -10 -10 ------------ Run | Yrd Mat Min Sub Used RIF Installer . | . . . . Robots Hacked 1 | . . . 1 Non-combat . | . . . . Combat 1 | . . . 1 Robot Hacks Applied 1 | . . . 1 parse_system 1 | . . . 1 Relay Couplers Released . | . . . . Fabnet Peak Effective % . | . . . . Robots Rewired . | . . . . Allies Hacked . | . . . . Hacks Repelled . | . . . . Allies | -11 -10 -10 -10 -------- Run | Yrd Mat Min Sub Total Allies . | . . . . Largest Group . | . . . . Highest-Rated Group . | . . . . Highest-Rated Ally . | . . . . Total Orders . | . . . . Ally Attacks . | . . . . Total Damage . | . . . . Kills . | . . . . Allies Corrupted . | . . . . Allies Melted . | . . . . Intel | -11 -10 -10 -10 ------- Run | Yrd Mat Min Sub Active Infowar (turns) 1214 | . 630 584 . Seismic 1214 | . 630 584 . Robot Analysis Total . | . . . . Derelict Logs Recovered 1 | . . 1 . Drone Launches . | . . . . Drone Recoveries . | . . . . Exploration | -11 -10 -10 -10 ------------- Run | Yrd Mat Min Sub Turns Passed 1801 | 114 649 987 51 Spaces Moved 644 | 64 264 312 4 Core 5 | 5 . . . Treads 639 | 59 264 312 4 Legs . | . . . . Wheels . | . . . . Hover . | . . . . Flight . | . . . . Fastest Speed 50 | 50 160 240 240 Average Speed 204 | 151 174 240 240 Slowest Speed 240 | 160 240 240 240 Overloaded Moves . | . . . . Propulsion Burnouts . | . . . . Robots Hopped . | . . . . Potential Cave-ins . | . . . . Cave-ins Triggered . | . . . . Exploration Rate (%) 27 | 6 33 68 3 Regions Visited 3 Branch Regions 2 Pre-discovered Areas 1 | . . 1 . Known Exits Taken . | . . . . Unknown Exits Taken 3 | 1 1 1 . Scrap Searched 1 | . . 1 . Spaces Dug . | . . . . Terrain Destroyed 57 | . . 46 11 Melee . | . . . . Projectile . | . . . . AOE 57 | . . 46 11 Terrain Rammed . | . . . . Walls Destroyed . | . . . . Machines Disabled . | . . . . Actions | -11 -10 -10 -10 --------- Run | Yrd Mat Min Sub Total 1002 | 79 369 527 27 Wait 225 | 4 30 191 . Move 641 | 63 263 311 4 Hop . | . . . . Pick Up 22 | 6 14 2 . Fast Attach 4 | 4 . . . Attach 11 | 2 1 4 4 Detach . | . . . . Swap 2 | . 1 1 . Drop 5 | . 5 . . Fire 88 | . 55 17 16 Melee 3 | . . . 3 Ram . | . . . . Kick . | . . . . Crush 1 | . . 1 . Escape Stasis . | . . . . Rewire . | . . . . Trap . | . . . . Miscellaneous . | . . . . Route ------- -11/Scrapyard -10/Materials -10/Mines (discovered 2 exits: [*Mat] / [*Sub]) -10/Subcaves History --------- Turn | Location | Event 35 | -11/Scrapyard | Discovered new exit (range 16) 115 | -11/Scrapyard | Entered Materials 307 | -10/Materials | Build established: Mutant 497 | -10/Materials | Discovered new exit (range 16) 764 | -10/Materials | Entered Mines 771 | -10/Mines | Received a Rocket Launcher from a helpful Derelict 832 | -10/Mines | A weapon hastily lodged in a ceiling crevice suddenly fell to the ground 912 | -10/Mines | Discovered new exit (range 4) 1347 | -10/Mines | Core integrity fell below 50% 1407 | -10/Mines | Lost 6 parts (1p2n1u2w) 1646 | -10/Mines | Discovered new exit (range 7) 1687 | -10/Mines | Assembled infested the area 1692 | -10/Mines | Assisted by a Guerilla fighting off Assembled 1694 | -10/Mines | Learned location of Zion (-6) 1751 | -10/Mines | Entered Subcaves 1752 | -10/Subcaves | Approached by a straggling Scientist 1761 | -10/Subcaves | Ambushed by Subdweller buried in earth 1793 | -10/Subcaves | Core integrity fell below 20% 1802 | -10/Subcaves | Destroyed self with Grenade Launcher Last Messages --------------- 01762_ IU-LC7(R): "ARGHSUB!" 01765_ DO-K6G(R) destroyed. 01766_ Lgt. Treads destroyed. 01768_ 9X-L0O(R) destroyed. 01770_ Grenade Launcher destroyed. 01771_ Jacked IU-LC7(R)... 01771_ Command string: shutdown 01771_ No effect. 01776_ Subatomizers dissect the Sub. Optics. 01790_ Lgt. Assault Rifle destroyed. 01791_ Jacked IU-LC7(R)... >>parse_system Reading system data... 01798_ Enh. Flamer destroyed. 01799_ Jacked IU-LC7(R)... 01802_ Subatomizers dissect the Sub. Optics. 01802_ IU-LC7(R) destroyed. 01802_ Lgt. Treads destroyed. 01802_ Destroyed Lgt. Treads. Map ----- +----------------------------------------------------+ | ?????????????????????????????????????????????????? | | ?????????????????????????????????????????????????? | | ?????????????????????????????????????????????????? | | ?????????????????????????????????????????????????? | | ?????????????????????????????????????????????????? | | ?????????????????????????????????????????????????? | | ?????????????????????????????????????????????????? | | ?????????????????????????????????????????????????? | | ?????????????????????????????????????????????????? | | ?????????????????????????????????????????????????? | | ?????????????????????????????????????????????????? | | ?????????????????????????????????????????????????? | | ?????????????????????????????????????????????????? | | ?????????????????????????????????????????????????? | | ?????????????????????????????????????????????????? | | ?????????????????????????????????????????????????? | | ?????????????????????????????????????????????????? | | ?????????????????????????????????????????????????? | | ????????????# # ?????????????????????????????????? | | ???????????? ""???????????????????????????????? | | ????????????" ????##?#####??????????????????? | | ????????????" =%& #### #;# ##?????????????????? | | ???????????##"" != ;; ; ##????????????????? | | ???????????" !%] &=& #????????????????? | | ???????????" ! [%!! #????????????????? | | ??????????" @&% #????????????????? | | ??????????" """""" ##????????????????? | | ????????????????"""" ;###?????????????????? | | ??????????????? ; ;#???????????????????? | | ?????????????? ;;# ;#???????????????????? | | ?????????????# ### #???????????????????? | | ?????????????## ??## ???????????????????? | | ??????????????## ?????# ??????????????????? | | ???????????????## ?????? ?????????????????? | | ????????????????# ??????? ?????????????????? | | ???????????????? ??????? ????????????????? | | ???????????????# ????????? #???????????????? | | ????????????????# ????????? #???????????????? | | ?????????????????? ?????????? ###????????????????? | | ?????????????????????????????????????????????????? | | ?????????????????????????????????????????????????? | | ?????????????????????????????????????????????????? | | ?????????????????????????????????????????????????? | | ?????????????????????????????????????????????????? | | ?????????????????????????????????????????????????? | | ?????????????????????????????????????????????????? | | ?????????????????????????????????????????????????? | | ?????????????????????????????????????????????????? | | ?????????????????????????????????????????????????? | | ?????????????????????????????????????????????????? | +----------------------------------------------------+ Best States ------------- Heat Dissipation 25 Energy Generation 10 Energy Capacity 125 Matter Stores 300 Matter Capacity 300 Sight Range 16 Terrain Scan Density 10 Evasion (%) 40 Recoil Reduction 2 Item Schematics ----------------- None Robot Schematics ------------------ None Fabricated ------------ Nothing Repaired ---------- Nothing Studied --------- None Alien Tech Used ----------------- None Achievements -------------- Do Not Disturb Slippery One Challenges ------------ None Game ------ Seed BackupProtonField Manual? 0 Play Time 00:11:47 Cumulative 25.4 hours Start 2026.03.28 @ 10:29:48 End 2026.03.28 @ 10:41:13 Sessions 1 Manual Loads 0 Difficulty Rogue Special Mode None Game No. 64 Rogue 64 Adventurer 0 Explorer 0 Win Type - Total 0 Types 0/0/0/0/0/0/0/0/0/0 Lore% 22 Gallery% 26 Achievement% 20 Wizard Run 0 Options --------- Layout 1 ASCII 0 Keyboard 0 Movement Numpad Keybinds 0 Fullscreen 1 Font 32/SmallcapsGlow Map View 50x35 Zoom Use 0% Tactical HUD 1 Map Filters NONE Filters NONE Steam 1 RUN: 5a121baa-f2ab-40fd-88b6-06606a71922c